[Event "Titled Tuesday Blitz June 20 Early 2023"]
[White "Sarkar, Justin"]
[Black "Baches Garcia, Guillermo"]
[WhiteFideId "2010011"]
[BlackFideId "2209764"]
[WhiteElo "2151"]
[BlackElo "2477"]
[Result "0-1"]
[Round "4"]
[TimeControl "180+2"]
[Date "2023.06.20"]
[WhiteClock "0:00:00"]
[BlackClock "0:01:10"]
[Board "180"]

1. e4 {[%clk 0:02:56]}  c5 {[%clk 0:02:59]} 2. Nf3 {[%clk 0:02:56]}  Nc6 {[%clk 0:02:59]} 3. d4 {[%clk 0:02:55]}  cxd4 {[%clk 0:02:59]} 4. Nxd4 {[%clk 0:02:55]}  e5 {[%clk 0:02:59]} 5. Nb5 {[%clk 0:02:38]}  d6 {[%clk 0:02:59]} 6. N1c3 {[%clk 0:02:31]}  a6 {[%clk 0:02:58]} 7. Na3 {[%clk 0:02:31]}  Be6 {[%clk 0:02:58]} 8. Nc4 {[%clk 0:02:25]}  Rb8 {[%clk 0:02:58]} 9. Ne3 {[%clk 0:02:10]}  Nf6 {[%clk 0:02:57]} 10. g3 {[%clk 0:01:37]}  h5 {[%clk 0:02:56]} 11. h3 {[%clk 0:01:30]}  g6 {[%clk 0:02:44]} 12. Bg2 {[%clk 0:01:28]}  Bh6 {[%clk 0:02:40]} 13. O-O {[%clk 0:01:19]}  h4 {[%clk 0:02:31]} 14. g4 {[%clk 0:01:16]}  Bf4 {[%clk 0:02:31]} 15. Ncd5 {[%clk 0:00:59]}  Bxe3 {[%clk 0:02:16]} 16. Bxe3 {[%clk 0:00:35]}  Bxd5 {[%clk 0:02:16]} 17. exd5 {[%clk 0:00:34]}  Ne7 {[%clk 0:02:12]} 18. f4 {[%clk 0:00:26]}  Nd7 {[%clk 0:02:03]} 19. fxe5 {[%clk 0:00:21]}  Nxe5 {[%clk 0:02:00]} 20. Qd4 {[%clk 0:00:16]}  Rc8 {[%clk 0:01:47]} 21. b3 {[%clk 0:00:15]}  Rxc2 {[%clk 0:01:45]} 22. Rac1 {[%clk 0:00:12]}  Rxa2 {[%clk 0:01:34]} 23. Bf4 {[%clk 0:00:08]}  O-O {[%clk 0:01:22]} 24. Bxe5 {[%clk 0:00:04]}  dxe5 {[%clk 0:01:22]} 25. Qxe5 {[%clk 0:00:04]}  Nc8 {[%clk 0:01:18]} 26. Rf2 {[%clk 0:00:01]}  Rxf2 {[%clk 0:01:13]} 27. Kxf2 {[%clk 0:00:00]}  Nd6 {[%clk 0:01:10]} 0-1


[Site "https://www.chess.com"]

[Event "Titled Tuesday Blitz June 20 Early 2023"]
[White "Luna Javier, Edgar Froylan"]
[Black "Zaichenko, Daria"]
[WhiteFideId "5120101"]
[BlackFideId "4197453"]
[WhiteElo "2091"]
[BlackElo "2039"]
[Result "1-0"]
[Round "4"]
[TimeControl "180+2"]
[Date "2023.06.20"]
[WhiteClock "0:00:22"]
[BlackClock "0:00:05"]
[Board "181"]

1. d4 {[%clk 0:03:00]}  d5 {[%clk 0:02:58]} 2. Nf3 {[%clk 0:03:00]}  Nf6 {[%clk 0:02:57]} 3. g3 {[%clk 0:03:01]}  e6 {[%clk 0:02:55]} 4. Bg2 {[%clk 0:03:01]}  Be7 {[%clk 0:02:55]} 5. O-O {[%clk 0:03:02]}  O-O {[%clk 0:02:56]} 6. c4 {[%clk 0:03:03]}  dxc4 {[%clk 0:02:55]} 7. Ne5 {[%clk 0:03:03]}  Nc6 {[%clk 0:02:53]} 8. Nxc6 {[%clk 0:03:03]}  bxc6 {[%clk 0:02:53]} 9. Na3 {[%clk 0:03:04]}  Bxa3 {[%clk 0:02:43]} 10. bxa3 {[%clk 0:03:05]}  Qd6 {[%clk 0:02:38]} 11. Qa4 {[%clk 0:02:49]}  Qxd4 {[%clk 0:02:31]} 12. Be3 {[%clk 0:02:47]}  Qb2 {[%clk 0:02:21]} 13. Rab1 {[%clk 0:02:36]}  Qxa2 {[%clk 0:02:19]} 14. Bxc6 {[%clk 0:02:32]}  Bd7 {[%clk 0:02:11]} 15. Bxd7 {[%clk 0:02:31]}  Nxd7 {[%clk 0:02:10]} 16. Qxd7 {[%clk 0:02:32]}  Qxa3 {[%clk 0:02:09]} 17. Qc6 {[%clk 0:02:13]}  Qa2 {[%clk 0:01:58]} 18. Rfc1 {[%clk 0:01:56]}  Qxe2 {[%clk 0:01:55]} 19. Qxc4 {[%clk 0:01:55]}  Qf3 {[%clk 0:01:53]} 20. Qc6 {[%clk 0:01:51]}  Qe2 {[%clk 0:01:50]} 21. Rc2 {[%clk 0:01:43]}  Qd3 {[%clk 0:01:49]} 22. Rbc1 {[%clk 0:01:41]}  a5 {[%clk 0:01:47]} 23. Qc4 {[%clk 0:01:36]}  Qf5 {[%clk 0:01:45]} 24. Qa4 {[%clk 0:01:30]}  Rfb8 {[%clk 0:01:25]} 25. Rxc7 {[%clk 0:01:24]}  h6 {[%clk 0:01:26]} 26. R7c5 {[%clk 0:01:20]}  Rb4 {[%clk 0:01:14]} 27. Qc6 {[%clk 0:01:09]}  Qe4 {[%clk 0:01:09]} 28. Qxe4 {[%clk 0:00:51]}  Rxe4 {[%clk 0:01:09]} 29. Rc8+ {[%clk 0:00:50]}  Rxc8 {[%clk 0:01:09]} 30. Rxc8+ {[%clk 0:00:50]}  Kh7 {[%clk 0:01:09]} 31. Ra8 {[%clk 0:00:51]}  Ra4 {[%clk 0:01:06]} 32. Kg2 {[%clk 0:00:49]}  Ra2 {[%clk 0:01:04]} 33. g4 {[%clk 0:00:45]}  a4 {[%clk 0:00:59]} 34. Ra5 {[%clk 0:00:42]}  Kg6 {[%clk 0:00:57]} 35. h4 {[%clk 0:00:42]}  Kh7 {[%clk 0:00:30]} 36. Ra7 {[%clk 0:00:36]}  f6 {[%clk 0:00:24]} 37. Kg3 {[%clk 0:00:32]}  e5 {[%clk 0:00:21]} 38. Bc5 {[%clk 0:00:25]}  Kg8 {[%clk 0:00:18]} 39. g5 {[%clk 0:00:22]}  hxg5 {[%clk 0:00:17]} 40. hxg5 {[%clk 0:00:23]}  f5 {[%clk 0:00:15]} 41. g6 {[%clk 0:00:23]}  f4+ {[%clk 0:00:05]} 42. Kg4 {[%clk 0:00:22]} 1-0


[Site "https://www.chess.com"]

[Event "Titled Tuesday Blitz June 20 Early 2023"]
[White "DanyKopy"]
[Black "SicilianPanzer"]
[WhiteElo "2469"]
[BlackElo "2222"]
[Result "0-1"]
[Round "4"]
[TimeControl "180+2"]
[Date "2023.06.20"]
[WhiteClock "0:00:15"]
[BlackClock "0:00:16"]
[Board "184"]

1. e4 {[%clk 0:03:00]}  d6 {[%clk 0:02:58]} 2. d4 {[%clk 0:02:59]}  Nf6 {[%clk 0:02:58]} 3. Nc3 {[%clk 0:02:58]}  g6 {[%clk 0:02:58]} 4. Be3 {[%clk 0:02:53]}  c6 {[%clk 0:02:57]} 5. f3 {[%clk 0:02:52]}  b5 {[%clk 0:02:54]} 6. Qd2 {[%clk 0:02:48]}  Nbd7 {[%clk 0:02:54]} 7. Bd3 {[%clk 0:02:43]}  Nb6 {[%clk 0:02:48]} 8. a4 {[%clk 0:02:42]}  Nc4 {[%clk 0:02:45]} 9. Bxc4 {[%clk 0:02:40]}  bxc4 {[%clk 0:02:46]} 10. Nge2 {[%clk 0:02:17]}  Rb8 {[%clk 0:02:43]} 11. Rb1 {[%clk 0:02:13]}  Bg7 {[%clk 0:02:13]} 12. O-O {[%clk 0:02:12]}  O-O {[%clk 0:02:12]} 13. Rfd1 {[%clk 0:02:12]}  d5 {[%clk 0:01:59]} 14. e5 {[%clk 0:02:11]}  Ne8 {[%clk 0:01:59]} 15. b3 {[%clk 0:02:07]}  cxb3 {[%clk 0:01:38]} 16. cxb3 {[%clk 0:02:08]}  Ba6 {[%clk 0:01:36]} 17. Nc1 {[%clk 0:02:01]}  f6 {[%clk 0:01:28]} 18. f4 {[%clk 0:01:52]}  fxe5 {[%clk 0:01:10]} 19. fxe5 {[%clk 0:01:53]}  Nc7 {[%clk 0:01:08]} 20. b4 {[%clk 0:01:48]}  Bc4 {[%clk 0:01:04]} 21. Nd3 {[%clk 0:01:45]}  Ne6 {[%clk 0:01:00]} 22. Nc5 {[%clk 0:01:41]}  Nxc5 {[%clk 0:00:56]} 23. bxc5 {[%clk 0:01:41]}  Qd7 {[%clk 0:00:45]} 24. Rxb8 {[%clk 0:01:32]}  Rxb8 {[%clk 0:00:45]} 25. Bh6 {[%clk 0:01:32]}  Bxh6 {[%clk 0:00:37]} 26. Qxh6 {[%clk 0:01:32]}  Rb3 {[%clk 0:00:35]} 27. Rb1 {[%clk 0:00:27]}  Qf5 {[%clk 0:00:25]} 28. Qc1 {[%clk 0:00:25]}  Rxc3 {[%clk 0:00:16]} 29. Rb8+ {[%clk 0:00:15]}  Kg7 {[%clk 0:00:16]} 0-1


[Site "https://www.chess.com"]

[Event "Titled Tuesday Blitz June 20 Early 2023"]
[White "Jovic, Stanoje"]
[Black "disciplinedbrat"]
[WhiteFideId "905020"]
[WhiteElo "2236"]
[BlackElo "2214"]
[Result "1-0"]
[Round "4"]
[TimeControl "180+2"]
[Date "2023.06.20"]
[WhiteClock "0:00:32"]
[BlackClock "0:00:03"]
[Board "186"]

1. c4 {[%clk 0:03:00]}  e5 {[%clk 0:02:59]} 2. g3 {[%clk 0:03:01]}  d5 {[%clk 0:02:56]} 3. cxd5 {[%clk 0:03:00]}  Qxd5 {[%clk 0:02:57]} 4. Nf3 {[%clk 0:02:59]}  Nc6 {[%clk 0:02:57]} 5. Nc3 {[%clk 0:02:57]}  Qd8 {[%clk 0:02:57]} 6. Bg2 {[%clk 0:02:56]}  Nf6 {[%clk 0:02:58]} 7. O-O {[%clk 0:02:56]}  h6 {[%clk 0:02:56]} 8. d3 {[%clk 0:02:49]}  Bd6 {[%clk 0:02:56]} 9. Rb1 {[%clk 0:02:47]}  O-O {[%clk 0:02:55]} 10. a3 {[%clk 0:02:47]}  a5 {[%clk 0:02:55]} 11. h3 {[%clk 0:02:40]}  Be6 {[%clk 0:02:51]} 12. Be3 {[%clk 0:02:37]}  Qd7 {[%clk 0:02:44]} 13. Kh2 {[%clk 0:02:36]}  Rfe8 {[%clk 0:02:41]} 14. Rc1 {[%clk 0:02:32]}  Rad8 {[%clk 0:02:41]} 15. Qd2 {[%clk 0:02:29]}  Qc8 {[%clk 0:02:35]} 16. Rfd1 {[%clk 0:02:19]}  e4 {[%clk 0:02:35]} 17. dxe4 {[%clk 0:02:09]}  Bxg3+ {[%clk 0:02:31]} 18. fxg3 {[%clk 0:02:09]}  Rxd2 {[%clk 0:02:32]} 19. Rxd2 {[%clk 0:02:09]}  Nd7 {[%clk 0:02:13]} 20. Bf2 {[%clk 0:01:56]}  Nde5 {[%clk 0:02:12]} 21. Nd5 {[%clk 0:01:54]}  f5 {[%clk 0:01:40]} 22. Nxe5 {[%clk 0:01:34]}  Bxd5 {[%clk 0:01:31]} 23. exd5 {[%clk 0:01:25]}  Nxe5 {[%clk 0:01:30]} 24. d6 {[%clk 0:01:24]}  c6 {[%clk 0:01:27]} 25. Bb6 {[%clk 0:01:17]}  Qd7 {[%clk 0:01:26]} 26. Bxa5 {[%clk 0:01:12]}  Re6 {[%clk 0:01:21]} 27. Bc7 {[%clk 0:01:11]}  Ng6 {[%clk 0:01:10]} 28. Rf1 {[%clk 0:01:06]}  Re3 {[%clk 0:00:59]} 29. Rxf5 {[%clk 0:00:53]}  Ne7 {[%clk 0:00:30]} 30. Rf3 {[%clk 0:00:41]}  Nf5 {[%clk 0:00:23]} 31. Rxf5 {[%clk 0:00:38]}  Re8 {[%clk 0:00:11]} 32. Rf4 {[%clk 0:00:34]}  g5 {[%clk 0:00:11]} 33. Re4 {[%clk 0:00:33]}  Re5 {[%clk 0:00:03]} 34. Rxe5 {[%clk 0:00:32]} 1-0


[Site "https://www.chess.com"]

[Event "Titled Tuesday Blitz June 20 Early 2023"]
[White "Andreev, Konstantin"]
[Black "Quirke, Jeffrey"]
[WhiteFideId "24239305"]
[BlackFideId "2013029"]
[WhiteElo "2106"]
[BlackElo "2206"]
[Result "1-0"]
[Round "4"]
[TimeControl "180+2"]
[Date "2023.06.20"]
[WhiteClock "0:01:54"]
[BlackClock "0:00:03"]
[Board "187"]

1. e4 {[%clk 0:03:00]}  Nf6 {[%clk 0:02:58]} 2. e5 {[%clk 0:03:00]}  Nd5 {[%clk 0:02:59]} 3. d4 {[%clk 0:03:00]}  d6 {[%clk 0:03:00]} 4. c4 {[%clk 0:03:00]}  Nb6 {[%clk 0:03:00]} 5. exd6 {[%clk 0:03:00]}  exd6 {[%clk 0:02:59]} 6. Nc3 {[%clk 0:02:57]}  Be7 {[%clk 0:02:59]} 7. Bd3 {[%clk 0:02:57]}  Nc6 {[%clk 0:02:52]} 8. Nge2 {[%clk 0:02:57]}  Bf6 {[%clk 0:02:52]} 9. Be3 {[%clk 0:02:54]}  O-O {[%clk 0:02:45]} 10. a3 {[%clk 0:02:54]}  d5 {[%clk 0:02:12]} 11. c5 {[%clk 0:02:50]}  Nd7 {[%clk 0:02:12]} 12. Qc2 {[%clk 0:02:49]}  Nxc5 {[%clk 0:02:02]} 13. dxc5 {[%clk 0:02:46]}  d4 {[%clk 0:02:01]} 14. Bxh7+ {[%clk 0:02:44]}  Kh8 {[%clk 0:02:00]} 15. O-O-O {[%clk 0:02:44]}  dxe3 {[%clk 0:00:58]} 16. Rxd8 {[%clk 0:02:40]}  Rxd8 {[%clk 0:00:59]} 17. fxe3 {[%clk 0:02:23]}  g6 {[%clk 0:00:49]} 18. Rf1 {[%clk 0:02:20]}  Kg7 {[%clk 0:00:40]} 19. Ng3 {[%clk 0:02:12]}  Be6 {[%clk 0:00:25]} 20. Nce4 {[%clk 0:02:10]}  Be5 {[%clk 0:00:21]} 21. Ng5 {[%clk 0:02:05]}  Bd5 {[%clk 0:00:04]} 22. Bxg6 {[%clk 0:01:56]}  fxg6 {[%clk 0:00:04]} 23. Nf5+ {[%clk 0:01:55]}  gxf5 {[%clk 0:00:04]} 24. Qxf5 {[%clk 0:01:55]}  Rf8 {[%clk 0:00:03]} 25. Qh7# {[%clk 0:01:54]} 1-0


[Site "https://www.chess.com"]

[Event "Titled Tuesday Blitz June 20 Early 2023"]
[White "Womacka, Mathias"]
[Black "Cueto, Jonny"]
[WhiteFideId "4611390"]
[BlackFideId "3300145"]
[WhiteElo "2377"]
[BlackElo "2240"]
[Result "1-0"]
[Round "4"]
[TimeControl "180+2"]
[Date "2023.06.20"]
[WhiteClock "0:00:20"]
[BlackClock "0:00:02"]
[Board "188"]

1. e4 {[%clk 0:03:00]}  e6 {[%clk 0:03:00]} 2. d4 {[%clk 0:02:59]}  d5 {[%clk 0:03:00]} 3. Nd2 {[%clk 0:02:59]}  h6 {[%clk 0:02:58]} 4. Ngf3 {[%clk 0:02:56]}  Nf6 {[%clk 0:02:57]} 5. Bd3 {[%clk 0:02:55]}  c5 {[%clk 0:02:54]} 6. exd5 {[%clk 0:02:46]}  Nxd5 {[%clk 0:02:48]} 7. O-O {[%clk 0:02:44]}  Be7 {[%clk 0:02:43]} 8. dxc5 {[%clk 0:02:42]}  Bxc5 {[%clk 0:02:44]} 9. Nb3 {[%clk 0:02:36]}  Bb6 {[%clk 0:02:40]} 10. Qe2 {[%clk 0:02:33]}  O-O {[%clk 0:02:39]} 11. Qe4 {[%clk 0:02:29]}  Nf6 {[%clk 0:02:38]} 12. Qh4 {[%clk 0:02:29]}  Nc6 {[%clk 0:02:28]} 13. Rd1 {[%clk 0:02:25]}  Qe7 {[%clk 0:02:21]} 14. Bf4 {[%clk 0:02:23]}  Nb4 {[%clk 0:02:13]} 15. Bd6 {[%clk 0:02:12]}  Nxd3 {[%clk 0:02:09]} 16. Bxe7 {[%clk 0:02:10]}  Bxf2+ {[%clk 0:02:09]} 17. Qxf2 {[%clk 0:02:07]}  Nxf2 {[%clk 0:02:09]} 18. Kxf2 {[%clk 0:02:07]}  Re8 {[%clk 0:02:06]} 19. Bxf6 {[%clk 0:01:56]}  gxf6 {[%clk 0:02:06]} 20. Rd6 {[%clk 0:01:51]}  e5 {[%clk 0:01:57]} 21. Rxf6 {[%clk 0:01:48]}  Kg7 {[%clk 0:01:58]} 22. Rd6 {[%clk 0:01:45]}  e4 {[%clk 0:01:52]} 23. Nfd4 {[%clk 0:01:45]}  h5 {[%clk 0:01:42]} 24. Re1 {[%clk 0:01:41]}  f5 {[%clk 0:01:37]} 25. Ke3 {[%clk 0:01:31]}  a5 {[%clk 0:01:31]} 26. a4 {[%clk 0:01:21]}  Rf8 {[%clk 0:01:07]} 27. Kf4 {[%clk 0:01:19]}  Kh7 {[%clk 0:01:05]} 28. Nc5 {[%clk 0:01:07]}  Rg8 {[%clk 0:01:03]} 29. Nce6 {[%clk 0:00:53]}  Rg4+ {[%clk 0:00:58]} 30. Kxf5 {[%clk 0:00:52]}  Bxe6+ {[%clk 0:00:19]} 31. Nxe6 {[%clk 0:00:46]}  Rxg2 {[%clk 0:00:18]} 32. Rxe4 {[%clk 0:00:39]}  Rxc2 {[%clk 0:00:13]} 33. Ng5+ {[%clk 0:00:35]}  Kg8 {[%clk 0:00:13]} 34. Rb6 {[%clk 0:00:27]}  Rxh2 {[%clk 0:00:07]} 35. Rxb7 {[%clk 0:00:25]}  Rf8+ {[%clk 0:00:06]} 36. Kg6 {[%clk 0:00:25]}  Rg2 {[%clk 0:00:05]} 37. Ree7 {[%clk 0:00:24]}  Rc8 {[%clk 0:00:01]} 38. Rg7+ {[%clk 0:00:21]}  Kh8 {[%clk 0:00:01]} 39. Rh7+ {[%clk 0:00:21]}  Kg8 {[%clk 0:00:01]} 40. Rbg7+ {[%clk 0:00:20]}  Kf8 {[%clk 0:00:02]} 41. Rh8# {[%clk 0:00:20]} 1-0


[Site "https://www.chess.com"]

[Event "Titled Tuesday Blitz June 20 Early 2023"]
[White "Rohde, Michael"]
[Black "Winkels, Marcel"]
[WhiteFideId "2000172"]
[BlackFideId "1003887"]
[WhiteElo "2274"]
[BlackElo "1900"]
[Result "1-0"]
[Round "4"]
[TimeControl "180+2"]
[Date "2023.06.20"]
[WhiteClock "0:01:39"]
[BlackClock "0:00:00"]
[Board "189"]

1. Nf3 {[%clk 0:02:54]}  Nf6 {[%clk 0:02:58]} 2. c4 {[%clk 0:02:53]}  g6 {[%clk 0:02:57]} 3. Nc3 {[%clk 0:02:52]}  d5 {[%clk 0:02:51]} 4. cxd5 {[%clk 0:02:52]}  Nxd5 {[%clk 0:02:50]} 5. Qa4+ {[%clk 0:02:52]}  Nc6 {[%clk 0:02:33]} 6. Ne5 {[%clk 0:02:50]}  Qd6 {[%clk 0:02:02]} 7. Nxc6 {[%clk 0:02:48]}  bxc6 {[%clk 0:01:52]} 8. g3 {[%clk 0:02:42]}  Bg7 {[%clk 0:01:51]} 9. Bg2 {[%clk 0:02:41]}  O-O {[%clk 0:01:47]} 10. O-O {[%clk 0:02:41]}  Bd7 {[%clk 0:01:26]} 11. Ne4 {[%clk 0:02:38]}  Qb4 {[%clk 0:01:20]} 12. Qxb4 {[%clk 0:02:36]}  Nxb4 {[%clk 0:01:19]} 13. Nc5 {[%clk 0:02:36]}  Bf5 {[%clk 0:01:15]} 14. d3 {[%clk 0:02:34]}  Bd4 {[%clk 0:01:07]} 15. Nb3 {[%clk 0:02:29]}  Bg7 {[%clk 0:01:01]} 16. Bd2 {[%clk 0:02:28]}  a5 {[%clk 0:00:55]} 17. Bc3 {[%clk 0:02:27]}  e5 {[%clk 0:00:48]} 18. Nxa5 {[%clk 0:02:19]}  Nd5 {[%clk 0:00:29]} 19. Nxc6 {[%clk 0:02:11]}  Nxc3 {[%clk 0:00:28]} 20. bxc3 {[%clk 0:02:09]}  Ra3 {[%clk 0:00:21]} 21. Ne7+ {[%clk 0:02:02]}  Kh8 {[%clk 0:00:20]} 22. Nxf5 {[%clk 0:02:00]}  gxf5 {[%clk 0:00:21]} 23. Rfc1 {[%clk 0:01:55]}  e4 {[%clk 0:00:18]} 24. d4 {[%clk 0:01:50]}  Rfa8 {[%clk 0:00:13]} 25. Bh3 {[%clk 0:01:48]}  Rxa2 {[%clk 0:00:09]} 26. Rxa2 {[%clk 0:01:47]}  Rxa2 {[%clk 0:00:10]} 27. e3 {[%clk 0:01:45]}  f4 {[%clk 0:00:05]} 28. gxf4 {[%clk 0:01:42]}  Bf8 {[%clk 0:00:00]} 29. Bf5 {[%clk 0:01:39]} 1-0


[Site "https://www.chess.com"]

[Event "Titled Tuesday Blitz June 20 Early 2023"]
[White "Heinemann, Josefine"]
[Black "Baruch, Liam"]
[WhiteFideId "12900460"]
[BlackFideId "14322064"]
[WhiteElo "2342"]
[BlackElo "2120"]
[Result "1-0"]
[Round "4"]
[TimeControl "180+2"]
[Date "2023.06.20"]
[WhiteClock "0:00:19"]
[BlackClock "0:00:12"]
[Board "192"]

1. c4 {[%clk 0:03:00]}  e6 {[%clk 0:02:58]} 2. Nf3 {[%clk 0:02:55]}  d5 {[%clk 0:02:58]} 3. g3 {[%clk 0:02:55]}  Nf6 {[%clk 0:02:59]} 4. Bg2 {[%clk 0:02:55]}  Be7 {[%clk 0:02:59]} 5. O-O {[%clk 0:02:55]}  O-O {[%clk 0:03:00]} 6. d4 {[%clk 0:02:55]}  dxc4 {[%clk 0:03:00]} 7. Ne5 {[%clk 0:02:54]}  Nc6 {[%clk 0:03:00]} 8. Bxc6 {[%clk 0:02:50]}  bxc6 {[%clk 0:03:01]} 9. Nxc6 {[%clk 0:02:51]}  Qe8 {[%clk 0:03:00]} 10. Nxe7+ {[%clk 0:02:51]}  Qxe7 {[%clk 0:03:00]} 11. Na3 {[%clk 0:02:40]}  e5 {[%clk 0:02:56]} 12. dxe5 {[%clk 0:02:38]}  Qxe5 {[%clk 0:02:53]} 13. Nxc4 {[%clk 0:02:37]}  Qh5 {[%clk 0:02:52]} 14. f3 {[%clk 0:02:20]}  Re8 {[%clk 0:02:47]} 15. Qc2 {[%clk 0:02:16]}  Ba6 {[%clk 0:02:32]} 16. b3 {[%clk 0:02:13]}  Qc5+ {[%clk 0:02:23]} 17. Kg2 {[%clk 0:02:12]}  Re6 {[%clk 0:02:16]} 18. Bb2 {[%clk 0:02:11]}  Rae8 {[%clk 0:02:15]} 19. e4 {[%clk 0:02:04]}  Bb7 {[%clk 0:02:11]} 20. Bxf6 {[%clk 0:02:01]}  Rxf6 {[%clk 0:02:08]} 21. Rae1 {[%clk 0:01:56]}  Qh5 {[%clk 0:01:52]} 22. Ne3 {[%clk 0:01:48]}  Rh6 {[%clk 0:01:32]} 23. Kg1 {[%clk 0:01:42]}  Ree6 {[%clk 0:01:13]} 24. Ng4 {[%clk 0:01:37]}  Rc6 {[%clk 0:01:09]} 25. Nxh6+ {[%clk 0:01:35]}  Qxh6 {[%clk 0:01:06]} 26. Qg2 {[%clk 0:01:34]}  Bc8 {[%clk 0:01:02]} 27. Rd1 {[%clk 0:01:27]}  Rd6 {[%clk 0:00:48]} 28. Rxd6 {[%clk 0:01:22]}  Qxd6 {[%clk 0:00:47]} 29. g4 {[%clk 0:01:22]}  Qd4+ {[%clk 0:00:45]} 30. Qf2 {[%clk 0:01:22]}  Qd6 {[%clk 0:00:37]} 31. Qxa7 {[%clk 0:01:18]}  h5 {[%clk 0:00:36]} 32. gxh5 {[%clk 0:01:08]}  Bh3 {[%clk 0:00:32]} 33. Qf2 {[%clk 0:01:02]}  Bxf1 {[%clk 0:00:23]} 34. Kxf1 {[%clk 0:01:00]}  Qd1+ {[%clk 0:00:23]} 35. Kg2 {[%clk 0:00:51]}  Qc1 {[%clk 0:00:23]} 36. a4 {[%clk 0:00:50]}  Qg5+ {[%clk 0:00:23]} 37. Kh1 {[%clk 0:00:45]}  Qc1+ {[%clk 0:00:23]} 38. Qg1 {[%clk 0:00:44]}  Qc3 {[%clk 0:00:22]} 39. Qf1 {[%clk 0:00:41]}  Qxb3 {[%clk 0:00:21]} 40. a5 {[%clk 0:00:41]}  Qa3 {[%clk 0:00:20]} 41. a6 {[%clk 0:00:41]}  Kh7 {[%clk 0:00:20]} 42. Kg2 {[%clk 0:00:41]}  c5 {[%clk 0:00:20]} 43. Kg3 {[%clk 0:00:40]}  Qa4 {[%clk 0:00:17]} 44. Qd3 {[%clk 0:00:28]}  c4 {[%clk 0:00:17]} 45. Qd6 {[%clk 0:00:20]}  c3 {[%clk 0:00:16]} 46. Qc7 {[%clk 0:00:18]}  c2 {[%clk 0:00:10]} 47. a7 {[%clk 0:00:18]}  Qa1 {[%clk 0:00:07]} 48. Qxc2 {[%clk 0:00:15]}  Qxa7 {[%clk 0:00:08]} 49. e5+ {[%clk 0:00:15]}  Kh6 {[%clk 0:00:08]} 50. Qf5 {[%clk 0:00:15]}  Qg1+ {[%clk 0:00:08]} 51. Kh3 {[%clk 0:00:15]}  Qf1+ {[%clk 0:00:09]} 52. Kh4 {[%clk 0:00:15]}  Qf2+ {[%clk 0:00:09]} 53. Kg4 {[%clk 0:00:15]}  Qg2+ {[%clk 0:00:09]} 54. Kf4 {[%clk 0:00:15]}  Qxh2+ {[%clk 0:00:10]} 55. Ke3 {[%clk 0:00:16]}  Qxh5 {[%clk 0:00:10]} 56. Qxh5+ {[%clk 0:00:11]}  Kxh5 {[%clk 0:00:11]} 57. Kf4 {[%clk 0:00:11]}  Kg6 {[%clk 0:00:11]} 58. Kg4 {[%clk 0:00:12]}  f6 {[%clk 0:00:10]} 59. e6 {[%clk 0:00:11]}  f5+ {[%clk 0:00:11]} 60. Kf4 {[%clk 0:00:11]}  Kf6 {[%clk 0:00:11]} 61. e7 {[%clk 0:00:12]}  g5+ {[%clk 0:00:08]} 62. Ke3 {[%clk 0:00:12]}  Kxe7 {[%clk 0:00:09]} 63. Kd3 {[%clk 0:00:12]}  Ke6 {[%clk 0:00:09]} 64. Ke2 {[%clk 0:00:11]}  Kd6 {[%clk 0:00:09]} 65. Kd2 {[%clk 0:00:11]}  Kc5 {[%clk 0:00:09]} 66. Kc3 {[%clk 0:00:11]}  Kd5 {[%clk 0:00:09]} 67. Kd3 {[%clk 0:00:11]}  Ke6 {[%clk 0:00:09]} 68. Ke2 {[%clk 0:00:12]}  Kf6 {[%clk 0:00:09]} 69. Kf2 {[%clk 0:00:12]}  Kg6 {[%clk 0:00:10]} 70. Kg2 {[%clk 0:00:12]}  Kg7 {[%clk 0:00:09]} 71. Kg3 {[%clk 0:00:12]}  Kf6 {[%clk 0:00:09]} 72. Kf2 {[%clk 0:00:12]}  Ke5 {[%clk 0:00:07]} 73. Ke3 {[%clk 0:00:12]}  f4+ {[%clk 0:00:06]} 74. Ke2 {[%clk 0:00:11]}  Kd4 {[%clk 0:00:07]} 75. Kd2 {[%clk 0:00:11]}  Kc4 {[%clk 0:00:07]} 76. Kc2 {[%clk 0:00:12]}  Kd5 {[%clk 0:00:08]} 77. Kd3 {[%clk 0:00:12]}  Ke5 {[%clk 0:00:08]} 78. Ke2 {[%clk 0:00:11]}  Kf5 {[%clk 0:00:07]} 79. Kf1 {[%clk 0:00:11]}  Kg6 {[%clk 0:00:07]} 80. Kg2 {[%clk 0:00:11]}  Kh6 {[%clk 0:00:07]} 81. Kh2 {[%clk 0:00:11]}  Kg7 {[%clk 0:00:04]} 82. Kg1 {[%clk 0:00:12]}  Kf7 {[%clk 0:00:05]} 83. Kf1 {[%clk 0:00:12]}  Ke7 {[%clk 0:00:06]} 84. Ke1 {[%clk 0:00:12]}  Kd6 {[%clk 0:00:06]} 85. Kd2 {[%clk 0:00:12]}  Kc5 {[%clk 0:00:07]} 86. Kc3 {[%clk 0:00:12]}  Kb5 {[%clk 0:00:07]} 87. Kd3 {[%clk 0:00:12]}  Kc5 {[%clk 0:00:07]} 88. Ke4 {[%clk 0:00:12]}  Kc4 {[%clk 0:00:07]} 89. Kf5 {[%clk 0:00:13]}  Kd4 {[%clk 0:00:08]} 90. Kxg5 {[%clk 0:00:13]}  Ke3 {[%clk 0:00:09]} 91. Kg4 {[%clk 0:00:14]}  Kd4 {[%clk 0:00:06]} 92. Kxf4 {[%clk 0:00:14]}  Kd5 {[%clk 0:00:07]} 93. Kg5 {[%clk 0:00:14]}  Ke6 {[%clk 0:00:08]} 94. f4 {[%clk 0:00:14]}  Kf7 {[%clk 0:00:08]} 95. Kf5 {[%clk 0:00:15]}  Kf8 {[%clk 0:00:09]} 96. Ke6 {[%clk 0:00:15]}  Ke8 {[%clk 0:00:09]} 97. f5 {[%clk 0:00:15]}  Kf8 {[%clk 0:00:10]} 98. Kf6 {[%clk 0:00:16]}  Ke8 {[%clk 0:00:10]} 99. Kg7 {[%clk 0:00:16]}  Ke7 {[%clk 0:00:11]} 100. f6+ {[%clk 0:00:17]}  Ke6 {[%clk 0:00:11]} 101. f7 {[%clk 0:00:18]}  Kf5 {[%clk 0:00:12]} 102. f8=Q+ {[%clk 0:00:19]} 1-0


[Site "https://www.chess.com"]

[Event "Titled Tuesday Blitz June 20 Early 2023"]
[White "Begunov, Konstantin"]
[Black "Castillo Pena, Patricia Evarista"]
[WhiteFideId "4118510"]
[BlackFideId "6412106"]
[WhiteElo "1993"]
[BlackElo "1859"]
[Result "1-0"]
[Round "4"]
[TimeControl "180+2"]
[Date "2023.06.20"]
[WhiteClock "0:00:23"]
[BlackClock "0:00:00"]
[Board "197"]

1. d4 {[%clk 0:02:52]}  d5 {[%clk 0:02:59]} 2. c4 {[%clk 0:02:52]}  c6 {[%clk 0:02:59]} 3. Nc3 {[%clk 0:02:53]}  Nf6 {[%clk 0:02:58]} 4. Nf3 {[%clk 0:02:53]}  e6 {[%clk 0:02:58]} 5. cxd5 {[%clk 0:02:53]}  exd5 {[%clk 0:02:58]} 6. Bg5 {[%clk 0:02:53]}  Be7 {[%clk 0:02:58]} 7. Qc2 {[%clk 0:02:53]}  h6 {[%clk 0:02:56]} 8. Bh4 {[%clk 0:02:53]}  Nbd7 {[%clk 0:02:47]} 9. e3 {[%clk 0:02:53]}  O-O {[%clk 0:02:46]} 10. Bd3 {[%clk 0:02:53]}  Re8 {[%clk 0:02:44]} 11. O-O {[%clk 0:02:53]}  b6 {[%clk 0:02:38]} 12. a3 {[%clk 0:02:50]}  Bb7 {[%clk 0:02:38]} 13. b4 {[%clk 0:02:49]}  a6 {[%clk 0:02:37]} 14. Rfe1 {[%clk 0:02:34]}  c5 {[%clk 0:02:31]} 15. bxc5 {[%clk 0:02:28]}  bxc5 {[%clk 0:02:30]} 16. Rab1 {[%clk 0:02:24]}  Qc8 {[%clk 0:02:24]} 17. dxc5 {[%clk 0:02:19]}  Nxc5 {[%clk 0:02:23]} 18. Bf5 {[%clk 0:02:15]}  Qd8 {[%clk 0:01:11]} 19. Na4 {[%clk 0:02:02]}  Nxa4 {[%clk 0:00:22]} 20. Rxb7 {[%clk 0:01:40]}  Nc5 {[%clk 0:00:22]} 21. Rbb1 {[%clk 0:01:39]}  Nce4 {[%clk 0:00:21]} 22. Nd4 {[%clk 0:01:12]}  Qa5 {[%clk 0:00:16]} 23. a4 {[%clk 0:00:55]}  Nd6 {[%clk 0:00:15]} 24. Nc6 {[%clk 0:00:49]}  Qc7 {[%clk 0:00:13]} 25. Nxe7+ {[%clk 0:00:48]}  Qxe7 {[%clk 0:00:14]} 26. Bd3 {[%clk 0:00:41]}  Rec8 {[%clk 0:00:12]} 27. Qe2 {[%clk 0:00:37]}  Nc4 {[%clk 0:00:11]} 28. Rec1 {[%clk 0:00:30]}  Qd6 {[%clk 0:00:07]} 29. Bxc4 {[%clk 0:00:25]}  dxc4 {[%clk 0:00:06]} 30. Rxc4 {[%clk 0:00:25]}  Rxc4 {[%clk 0:00:06]} 31. Qxc4 {[%clk 0:00:26]}  Rd8 {[%clk 0:00:00]} 32. h3 {[%clk 0:00:23]} 1-0


[Site "https://www.chess.com"]